[Event "Titled Tuesday Blitz December 27 Late 2022"]
[White "Aguilar, Juan"]
[Black "Dylag, Emilia"]
[WhiteFideId "3800091"]
[BlackFideId "21805172"]
[WhiteElo "2254"]
[BlackElo "2095"]
[Result "1-0"]
[Round "03"]
[TimeControl "180+2"]
[Date "2022.12.27"]
[WhiteClock "0:02:18"]
[BlackClock "0:02:05"]

1. g3 {[%clk 0:03:00]}  Nf6 {[%clk 0:02:58]} 2. Bg2 {[%clk 0:03:01]}  e6 {[%clk 0:02:59]} 3. d3 {[%clk 0:03:01]}  d5 {[%clk 0:02:58]} 4. Nf3 {[%clk 0:03:01]}  Bd6 {[%clk 0:02:58]} 5. O-O {[%clk 0:03:01]}  O-O {[%clk 0:02:59]} 6. Nbd2 {[%clk 0:03:01]}  c5 {[%clk 0:02:57]} 7. e4 {[%clk 0:03:01]}  Nc6 {[%clk 0:02:56]} 8. Re1 {[%clk 0:03:01]}  Qc7 {[%clk 0:02:51]} 9. Qe2 {[%clk 0:02:57]}  dxe4 {[%clk 0:02:42]} 10. dxe4 {[%clk 0:02:56]}  Ne5 {[%clk 0:02:37]} 11. Nxe5 {[%clk 0:02:53]}  Bxe5 {[%clk 0:02:31]} 12. Nc4 {[%clk 0:02:52]}  b5 {[%clk 0:02:26]} 13. Nxe5 {[%clk 0:02:52]}  Qxe5 {[%clk 0:02:27]} 14. c3 {[%clk 0:02:45]}  Bb7 {[%clk 0:02:11]} 15. Bf4 {[%clk 0:02:44]}  Qh5 {[%clk 0:02:11]} 16. Qxb5 {[%clk 0:02:38]}  Rab8 {[%clk 0:02:11]} 17. Bxb8 {[%clk 0:02:37]}  Rxb8 {[%clk 0:02:11]} 18. Rad1 {[%clk 0:02:29]}  Ng4 {[%clk 0:02:04]} 19. h3 {[%clk 0:02:22]}  Ne5 {[%clk 0:02:05]} 20. Qxb7 {[%clk 0:02:18]} 1-0


[Site "https://www.chess.com"]

[Event "Titled Tuesday Blitz December 27 Late 2022"]
[White "Albertini, Luca"]
[Black "Phillips, Rene"]
[WhiteFideId "847038"]
[BlackFideId "2056275"]
[WhiteElo "2084"]
[BlackElo "1852"]
[Result "1-0"]
[Round "03"]
[TimeControl "180+2"]
[Date "2022.12.27"]
[WhiteClock "0:01:48"]
[BlackClock "0:00:47"]

1. e4 {[%clk 0:03:00]}  Nc6 {[%clk 0:02:59]} 2. Nf3 {[%clk 0:03:00]}  d5 {[%clk 0:03:00]} 3. exd5 {[%clk 0:03:00]}  Qxd5 {[%clk 0:03:01]} 4. Nc3 {[%clk 0:03:00]}  Qa5 {[%clk 0:03:01]} 5. Bc4 {[%clk 0:03:00]}  Bg4 {[%clk 0:03:01]} 6. h3 {[%clk 0:03:00]}  Bxf3 {[%clk 0:03:00]} 7. Qxf3 {[%clk 0:02:59]}  Qe5+ {[%clk 0:03:00]} 8. Qe3 {[%clk 0:02:53]}  e6 {[%clk 0:02:57]} 9. O-O {[%clk 0:02:52]}  Qxe3 {[%clk 0:02:56]} 10. fxe3 {[%clk 0:02:50]}  O-O-O {[%clk 0:02:57]} 11. d4 {[%clk 0:02:49]}  Nf6 {[%clk 0:02:56]} 12. Bd3 {[%clk 0:02:47]}  Nb4 {[%clk 0:02:54]} 13. a3 {[%clk 0:02:45]}  Nxd3 {[%clk 0:02:54]} 14. cxd3 {[%clk 0:02:46]}  Be7 {[%clk 0:02:53]} 15. Ne4 {[%clk 0:02:45]}  Nxe4 {[%clk 0:02:47]} 16. dxe4 {[%clk 0:02:46]}  f6 {[%clk 0:02:47]} 17. Bd2 {[%clk 0:02:41]}  c6 {[%clk 0:02:44]} 18. Bc3 {[%clk 0:02:42]}  Kb8 {[%clk 0:02:42]} 19. Rad1 {[%clk 0:02:41]}  Rd7 {[%clk 0:02:41]} 20. g4 {[%clk 0:02:33]}  h6 {[%clk 0:02:40]} 21. Kg2 {[%clk 0:02:32]}  Rhd8 {[%clk 0:02:40]} 22. Kg3 {[%clk 0:02:32]}  Bd6+ {[%clk 0:02:40]} 23. Kg2 {[%clk 0:02:31]}  Bc7 {[%clk 0:02:37]} 24. h4 {[%clk 0:02:31]}  e5 {[%clk 0:02:19]} 25. Rde1 {[%clk 0:02:22]}  Re8 {[%clk 0:02:05]} 26. Kf3 {[%clk 0:02:19]}  Rde7 {[%clk 0:02:04]} 27. d5 {[%clk 0:02:17]}  Rd7 {[%clk 0:02:00]} 28. dxc6 {[%clk 0:02:05]}  bxc6 {[%clk 0:01:59]} 29. g5 {[%clk 0:02:06]}  hxg5 {[%clk 0:01:58]} 30. hxg5 {[%clk 0:02:07]}  Bd8 {[%clk 0:01:57]} 31. Kg4 {[%clk 0:02:05]}  Rh8 {[%clk 0:01:53]} 32. Kf5 {[%clk 0:02:02]}  Rh5 {[%clk 0:01:47]} 33. Rg1 {[%clk 0:01:59]}  Kc8 {[%clk 0:01:35]} 34. Kg6 {[%clk 0:01:58]}  Rxg5+ {[%clk 0:01:23]} 35. Rxg5 {[%clk 0:01:57]}  fxg5 {[%clk 0:01:23]} 36. Bxe5 {[%clk 0:01:57]}  Re7 {[%clk 0:01:14]} 37. Kf5 {[%clk 0:01:55]}  Rd7 {[%clk 0:01:08]} 38. Rc1 {[%clk 0:01:52]}  Rd3 {[%clk 0:00:47]} 39. Rxc6+ {[%clk 0:01:48]} 1-0


[Site "https://www.chess.com"]

[Event "Titled Tuesday Blitz December 27 Late 2022"]
[White "Alekseenko, Kirill"]
[Black "Beerdsen, Thomas"]
[WhiteFideId "4135539"]
[BlackFideId "1030108"]
[WhiteElo "2686"]
[BlackElo "2507"]
[Result "0-1"]
[Round "03"]
[TimeControl "180+2"]
[Date "2022.12.27"]
[WhiteClock "0:01:07"]
[BlackClock "0:01:25"]

1. e4 {[%clk 0:03:00]}  e5 {[%clk 0:02:59]} 2. Nf3 {[%clk 0:03:00]}  Nc6 {[%clk 0:03:00]} 3. Bb5 {[%clk 0:03:01]}  f5 {[%clk 0:03:01]} 4. d3 {[%clk 0:02:59]}  fxe4 {[%clk 0:03:01]} 5. dxe4 {[%clk 0:02:59]}  Nf6 {[%clk 0:03:02]} 6. Nc3 {[%clk 0:02:56]}  Bb4 {[%clk 0:03:02]} 7. Qd3 {[%clk 0:02:52]}  d6 {[%clk 0:03:00]} 8. O-O {[%clk 0:02:49]}  Bxc3 {[%clk 0:03:01]} 9. Qxc3 {[%clk 0:02:46]}  O-O {[%clk 0:03:00]} 10. Ng5 {[%clk 0:02:44]}  Kh8 {[%clk 0:02:51]} 11. Bxc6 {[%clk 0:02:15]}  bxc6 {[%clk 0:02:52]} 12. Qxc6 {[%clk 0:02:15]}  Rb8 {[%clk 0:02:50]} 13. Qc4 {[%clk 0:02:16]}  Qe7 {[%clk 0:02:45]} 14. Be3 {[%clk 0:02:11]}  Ng4 {[%clk 0:02:34]} 15. Nf3 {[%clk 0:02:11]}  Be6 {[%clk 0:02:23]} 16. Qc3 {[%clk 0:02:06]}  Rxf3 {[%clk 0:02:03]} 17. gxf3 {[%clk 0:01:57]}  Qh4 {[%clk 0:02:04]} 18. Rfd1 {[%clk 0:01:47]}  Nxh2 {[%clk 0:01:49]} 19. Qxc7 {[%clk 0:01:39]}  Nxf3+ {[%clk 0:01:39]} 20. Kf1 {[%clk 0:01:31]}  Rc8 {[%clk 0:01:36]} 21. Qb7 {[%clk 0:01:22]}  Rxc2 {[%clk 0:01:26]} 22. Qa8+ {[%clk 0:01:09]}  Rc8 {[%clk 0:01:26]} 23. Qb7 {[%clk 0:01:07]}  Bc4+ {[%clk 0:01:25]} 0-1


[Site "https://www.chess.com"]

[Event "Titled Tuesday Blitz December 27 Late 2022"]
[White "Ankerst, Mihael"]
[Black "Ozdemir, Serhan Berat"]
[WhiteFideId "14602369"]
[BlackFideId "6374611"]
[WhiteElo "2370"]
[BlackElo "2223"]
[Result "1/2-1/2"]
[Round "03"]
[TimeControl "180+2"]
[Date "2022.12.27"]
[WhiteClock "0:00:17"]
[BlackClock "0:00:03"]

1. e4 {[%clk 0:03:00]}  c5 {[%clk 0:02:59]} 2. Nf3 {[%clk 0:03:00]}  e6 {[%clk 0:03:00]} 3. d4 {[%clk 0:03:01]}  cxd4 {[%clk 0:03:01]} 4. Nxd4 {[%clk 0:03:01]}  a6 {[%clk 0:03:01]} 5. c4 {[%clk 0:03:02]}  Nf6 {[%clk 0:03:01]} 6. Nc3 {[%clk 0:03:02]}  Bb4 {[%clk 0:03:01]} 7. Nc2 {[%clk 0:02:58]}  Bxc3+ {[%clk 0:03:00]} 8. bxc3 {[%clk 0:02:59]}  d6 {[%clk 0:02:09]} 9. f3 {[%clk 0:02:56]}  O-O {[%clk 0:01:28]} 10. Ba3 {[%clk 0:02:54]}  Ne8 {[%clk 0:01:29]} 11. e5 {[%clk 0:02:53]}  Qa5 {[%clk 0:01:28]} 12. exd6 {[%clk 0:02:44]}  Qxc3+ {[%clk 0:01:21]} 13. Qd2 {[%clk 0:02:45]}  Qxd2+ {[%clk 0:01:18]} 14. Kxd2 {[%clk 0:02:44]}  Bd7 {[%clk 0:01:03]} 15. c5 {[%clk 0:02:39]}  Bc6 {[%clk 0:00:37]} 16. Rb1 {[%clk 0:02:39]}  Nd7 {[%clk 0:00:34]} 17. Bc4 {[%clk 0:02:31]}  e5 {[%clk 0:00:15]} 18. Nb4 {[%clk 0:02:26]}  Nef6 {[%clk 0:00:04]} 19. Nxc6 {[%clk 0:02:23]}  bxc6 {[%clk 0:00:05]} 20. Rb7 {[%clk 0:02:23]}  Rfb8 {[%clk 0:00:04]} 21. Rhb1 {[%clk 0:02:22]}  Rxb7 {[%clk 0:00:04]} 22. Rxb7 {[%clk 0:02:23]}  Rb8 {[%clk 0:00:05]} 23. Bxa6 {[%clk 0:02:20]}  Ra8 {[%clk 0:00:03]} 24. Bb5 {[%clk 0:01:55]}  cxb5 {[%clk 0:00:02]} 25. c6 {[%clk 0:01:55]}  Rxa3 {[%clk 0:00:03]} 26. Rb8+ {[%clk 0:01:30]}  Nxb8 {[%clk 0:00:01]} 27. c7 {[%clk 0:01:30]}  Rxa2+ {[%clk 0:00:01]} 28. Kc1 {[%clk 0:01:29]}  Nbd7 {[%clk 0:00:01]} 29. c8=Q+ {[%clk 0:01:29]}  Nf8 {[%clk 0:00:02]} 30. g4 {[%clk 0:01:27]}  Nd7 {[%clk 0:00:02]} 31. Qc6 {[%clk 0:01:25]}  Rxh2 {[%clk 0:00:02]} 32. Qxb5 {[%clk 0:01:24]}  Rf2 {[%clk 0:00:02]} 33. Qd5 {[%clk 0:01:24]}  Rh2 {[%clk 0:00:02]} 34. Kd1 {[%clk 0:01:23]}  h6 {[%clk 0:00:03]} 35. Ke1 {[%clk 0:01:23]}  Rg2 {[%clk 0:00:02]} 36. Kf1 {[%clk 0:01:22]}  Rb2 {[%clk 0:00:02]} 37. Qd3 {[%clk 0:01:19]}  Rb6 {[%clk 0:00:03]} 38. Ke2 {[%clk 0:01:19]}  Rb4 {[%clk 0:00:02]} 39. Ke3 {[%clk 0:01:11]}  Rd4 {[%clk 0:00:03]} 40. Qa3 {[%clk 0:01:10]}  g6 {[%clk 0:00:03]} 41. Qc5 {[%clk 0:01:03]}  Kg7 {[%clk 0:00:03]} 42. Qa3 {[%clk 0:01:02]}  Rd5 {[%clk 0:00:02]} 43. Kf2 {[%clk 0:01:02]}  Rd4 {[%clk 0:00:03]} 44. Kg3 {[%clk 0:01:03]}  Ne6 {[%clk 0:00:03]} 45. Qa6 {[%clk 0:01:00]}  Nec5 {[%clk 0:00:02]} 46. Qc6 {[%clk 0:00:59]}  Rd3 {[%clk 0:00:01]} 47. Kf2 {[%clk 0:00:59]}  Rd4 {[%clk 0:00:01]} 48. Ke2 {[%clk 0:01:00]}  g5 {[%clk 0:00:01]} 49. Ke3 {[%clk 0:00:59]}  Kf6 {[%clk 0:00:01]} 50. Ke2 {[%clk 0:00:59]}  Ke6 {[%clk 0:00:02]} 51. Qc8 {[%clk 0:00:59]}  Kxd6 {[%clk 0:00:02]} 52. Qh8 {[%clk 0:01:00]}  f6 {[%clk 0:00:03]} 53. Qxh6 {[%clk 0:01:00]}  Kd5 {[%clk 0:00:03]} 54. Qg6 {[%clk 0:01:00]}  Kc4 {[%clk 0:00:04]} 55. Qf5 {[%clk 0:01:00]}  Rd3 {[%clk 0:00:04]} 56. Kf2 {[%clk 0:00:59]}  Rd2+ {[%clk 0:00:04]} 57. Ke3 {[%clk 0:00:59]}  Rd3+ {[%clk 0:00:05]} 58. Ke2 {[%clk 0:00:59]}  Rd4 {[%clk 0:00:05]} 59. Qc2+ {[%clk 0:00:59]}  Kd5 {[%clk 0:00:06]} 60. Qf5 {[%clk 0:01:00]}  Kd6 {[%clk 0:00:06]} 61. Qg6 {[%clk 0:00:59]}  Ne6 {[%clk 0:00:06]} 62. Qf7 {[%clk 0:00:58]}  Nf4+ {[%clk 0:00:06]} 63. Ke3 {[%clk 0:00:58]}  Rd3+ {[%clk 0:00:07]} 64. Kf2 {[%clk 0:00:59]}  Rd2+ {[%clk 0:00:07]} 65. Ke1 {[%clk 0:00:59]}  Re2+ {[%clk 0:00:07]} 66. Kf1 {[%clk 0:01:00]}  Nc5 {[%clk 0:00:07]} 67. Qf8+ {[%clk 0:01:00]}  Kd5 {[%clk 0:00:07]} 68. Qd8+ {[%clk 0:01:00]}  Kc4 {[%clk 0:00:08]} 69. Qd6 {[%clk 0:01:00]}  Ncd3 {[%clk 0:00:07]} 70. Qxf6 {[%clk 0:01:00]}  Kd4 {[%clk 0:00:08]} 71. Qd6+ {[%clk 0:00:56]}  Ke3 {[%clk 0:00:07]} 72. Qb6+ {[%clk 0:00:41]}  Kxf3 {[%clk 0:00:07]} 73. Qc6+ {[%clk 0:00:42]}  e4 {[%clk 0:00:08]} 74. Kg1 {[%clk 0:00:26]}  Re1+ {[%clk 0:00:06]} 75. Kh2 {[%clk 0:00:26]}  Re2+ {[%clk 0:00:07]} 76. Kg1 {[%clk 0:00:24]}  Rg2+ {[%clk 0:00:07]} 77. Kf1 {[%clk 0:00:22]}  Rf2+ {[%clk 0:00:04]} 78. Kg1 {[%clk 0:00:22]}  Nh3+ {[%clk 0:00:03]} 79. Kh1 {[%clk 0:00:22]}  Ndf4 {[%clk 0:00:03]} 80. Qc3+ {[%clk 0:00:19]}  e3 {[%clk 0:00:03]} 81. Qc6+ {[%clk 0:00:19]}  Kg3 {[%clk 0:00:03]} 82. Qg2+ {[%clk 0:00:17]}  Nxg2 {[%clk 0:00:03]} 1/2-1/2


[Site "https://www.chess.com"]

[Event "Titled Tuesday Blitz December 27 Late 2022"]
[White "Araujo Sanchez, Josue"]
[Black "Holt, Conrad"]
[WhiteFideId "6416896"]
[BlackFideId "2034387"]
[WhiteElo "2303"]
[BlackElo "2540"]
[Result "1-0"]
[Round "03"]
[TimeControl "180+2"]
[Date "2022.12.27"]
[WhiteClock "0:00:09"]
[BlackClock "0:00:03"]

1. e4 {[%clk 0:03:00]}  e6 {[%clk 0:02:59]} 2. d3 {[%clk 0:03:00]}  d5 {[%clk 0:02:59]} 3. Nd2 {[%clk 0:03:01]}  c5 {[%clk 0:02:58]} 4. Ngf3 {[%clk 0:03:01]}  Nc6 {[%clk 0:02:58]} 5. g3 {[%clk 0:03:01]}  Bd6 {[%clk 0:02:59]} 6. Bg2 {[%clk 0:03:01]}  Nge7 {[%clk 0:02:58]} 7. O-O {[%clk 0:03:02]}  O-O {[%clk 0:02:59]} 8. Re1 {[%clk 0:03:02]}  Qc7 {[%clk 0:02:59]} 9. c3 {[%clk 0:02:55]}  Bd7 {[%clk 0:02:58]} 10. a3 {[%clk 0:02:46]}  a5 {[%clk 0:02:53]} 11. d4 {[%clk 0:02:38]}  cxd4 {[%clk 0:02:49]} 12. cxd4 {[%clk 0:02:38]}  Ng6 {[%clk 0:02:44]} 13. h4 {[%clk 0:02:18]}  Qb6 {[%clk 0:02:31]} 14. h5 {[%clk 0:02:13]}  Nge7 {[%clk 0:02:31]} 15. h6 {[%clk 0:02:09]}  g6 {[%clk 0:02:31]} 16. e5 {[%clk 0:02:04]}  Bb8 {[%clk 0:02:30]} 17. Nb3 {[%clk 0:01:59]}  Rc8 {[%clk 0:02:11]} 18. g4 {[%clk 0:01:48]}  Be8 {[%clk 0:02:05]} 19. Be3 {[%clk 0:01:40]}  a4 {[%clk 0:01:51]} 20. Nc5 {[%clk 0:01:40]}  Qxb2 {[%clk 0:01:51]} 21. Ng5 {[%clk 0:01:38]}  Nxe5 {[%clk 0:01:32]} 22. dxe5 {[%clk 0:01:30]}  Qxe5 {[%clk 0:01:31]} 23. Nf3 {[%clk 0:01:15]}  Qc7 {[%clk 0:01:21]} 24. Rc1 {[%clk 0:01:08]}  Nc6 {[%clk 0:01:20]} 25. Nxa4 {[%clk 0:01:07]}  Ba7 {[%clk 0:01:18]} 26. Nc5 {[%clk 0:01:03]}  e5 {[%clk 0:01:12]} 27. Qxd5 {[%clk 0:00:59]}  Rd8 {[%clk 0:01:13]} 28. Qe4 {[%clk 0:00:58]}  Qe7 {[%clk 0:01:09]} 29. g5 {[%clk 0:00:55]}  Bb8 {[%clk 0:01:02]} 30. Nh2 {[%clk 0:00:54]}  b6 {[%clk 0:00:52]} 31. Na4 {[%clk 0:00:40]}  Rd4 {[%clk 0:00:43]} 32. Bxd4 {[%clk 0:00:38]}  Rxa4 {[%clk 0:00:43]} 33. Rxc6 {[%clk 0:00:38]}  Bxc6 {[%clk 0:00:34]} 34. Qxc6 {[%clk 0:00:35]}  Rxd4 {[%clk 0:00:34]} 35. Qxb6 {[%clk 0:00:33]}  Ba7 {[%clk 0:00:29]} 36. Qb7 {[%clk 0:00:28]}  Rd7 {[%clk 0:00:24]} 37. Qa8+ {[%clk 0:00:27]}  Rd8 {[%clk 0:00:24]} 38. Qb7 {[%clk 0:00:23]}  Rd7 {[%clk 0:00:16]} 39. Qc8+ {[%clk 0:00:23]}  Rd8 {[%clk 0:00:15]} 40. Qg4 {[%clk 0:00:23]}  Qxa3 {[%clk 0:00:11]} 41. Nf1 {[%clk 0:00:19]}  Qc3 {[%clk 0:00:07]} 42. Rd1 {[%clk 0:00:17]}  Bxf2+ {[%clk 0:00:04]} 43. Kxf2 {[%clk 0:00:16]}  Qc2+ {[%clk 0:00:05]} 44. Rd2 {[%clk 0:00:16]}  Rxd2+ {[%clk 0:00:05]} 45. Nxd2 {[%clk 0:00:16]}  Qxd2+ {[%clk 0:00:05]} 46. Kg3 {[%clk 0:00:16]}  Qd3+ {[%clk 0:00:05]} 47. Kh2 {[%clk 0:00:17]}  Qd8 {[%clk 0:00:05]} 48. Qf3 {[%clk 0:00:14]}  Kf8 {[%clk 0:00:04]} 49. Qf6 {[%clk 0:00:13]}  Qc7 {[%clk 0:00:04]} 50. Qh8+ {[%clk 0:00:12]}  Ke7 {[%clk 0:00:05]} 51. Qf6+ {[%clk 0:00:12]}  Ke8 {[%clk 0:00:04]} 52. Bc6+ {[%clk 0:00:11]}  Kf8 {[%clk 0:00:03]} 53. Qh8+ {[%clk 0:00:12]}  Ke7 {[%clk 0:00:04]} 54. Qf6+ {[%clk 0:00:11]}  Kf8 {[%clk 0:00:04]} 55. Kh3 {[%clk 0:00:11]}  Qc8+ {[%clk 0:00:03]} 56. Kg2 {[%clk 0:00:11]}  Qg4+ {[%clk 0:00:03]} 57. Kf2 {[%clk 0:00:11]}  Qd4+ {[%clk 0:00:03]} 58. Ke2 {[%clk 0:00:11]}  Qc4+ {[%clk 0:00:03]} 59. Kf3 {[%clk 0:00:11]}  Qd3+ {[%clk 0:00:03]} 60. Kg4 {[%clk 0:00:11]}  Qd4+ {[%clk 0:00:03]} 61. Kg3 {[%clk 0:00:11]}  Qd3+ {[%clk 0:00:03]} 62. Bf3 {[%clk 0:00:10]}  Qe3 {[%clk 0:00:03]} 63. Qd8# {[%clk 0:00:09]} 1-0


[Site "https://www.chess.com"]

[Event "Titled Tuesday Blitz December 27 Late 2022"]
[White "Ardila, Oscar Humberto"]
[Black "Sarkar, Justin"]
[WhiteFideId "4404742"]
[BlackFideId "2010011"]
[WhiteElo "1982"]
[BlackElo "2309"]
[Result "1-0"]
[Round "03"]
[TimeControl "180+2"]
[Date "2022.12.27"]
[WhiteClock "0:01:58"]
[BlackClock "0:00:01"]

1. d4 {[%clk 0:02:59]}  Nf6 {[%clk 0:02:50]} 2. c4 {[%clk 0:02:59]}  g6 {[%clk 0:02:49]} 3. Nf3 {[%clk 0:02:59]}  Bg7 {[%clk 0:02:49]} 4. e3 {[%clk 0:03:00]}  O-O {[%clk 0:02:47]} 5. Be2 {[%clk 0:03:00]}  b6 {[%clk 0:02:34]} 6. O-O {[%clk 0:03:00]}  Bb7 {[%clk 0:02:33]} 7. Nc3 {[%clk 0:03:01]}  d5 {[%clk 0:02:30]} 8. b3 {[%clk 0:02:59]}  e6 {[%clk 0:02:18]} 9. Ba3 {[%clk 0:02:57]}  Re8 {[%clk 0:02:16]} 10. Ne5 {[%clk 0:02:57]}  Nfd7 {[%clk 0:02:06]} 11. f4 {[%clk 0:02:57]}  dxc4 {[%clk 0:01:20]} 12. bxc4 {[%clk 0:02:55]}  c5 {[%clk 0:01:12]} 13. Bf3 {[%clk 0:02:50]}  Qc8 {[%clk 0:00:39]} 14. Nb5 {[%clk 0:02:45]}  Bf8 {[%clk 0:00:35]} 15. d5 {[%clk 0:02:27]}  exd5 {[%clk 0:00:21]} 16. Bxd5 {[%clk 0:02:24]}  Nxe5 {[%clk 0:00:08]} 17. fxe5 {[%clk 0:02:24]}  Bxd5 {[%clk 0:00:03]} 18. Qxd5 {[%clk 0:02:24]}  Qd7 {[%clk 0:00:02]} 19. Qxa8 {[%clk 0:02:21]}  Nc6 {[%clk 0:00:01]} 20. e6 {[%clk 0:01:58]} 1-0


[Site "https://www.chess.com"]

[Event "Titled Tuesday Blitz December 27 Late 2022"]
[White "Atakishiyev, Elmar"]
[Black "Kamsky, Gata"]
[WhiteFideId "13410547"]
[BlackFideId "2000024"]
[WhiteElo "2363"]
[BlackElo "2665"]
[Result "1/2-1/2"]
[Round "03"]
[TimeControl "180+2"]
[Date "2022.12.27"]
[WhiteClock "0:01:26"]
[BlackClock "0:00:53"]

1. Nf3 {[%clk 0:03:00]}  Nf6 {[%clk 0:02:59]} 2. g3 {[%clk 0:03:00]}  g6 {[%clk 0:02:58]} 3. Bg2 {[%clk 0:02:59]}  Bg7 {[%clk 0:02:58]} 4. O-O {[%clk 0:02:59]}  O-O {[%clk 0:02:58]} 5. d3 {[%clk 0:02:59]}  d5 {[%clk 0:02:54]} 6. c3 {[%clk 0:02:59]}  c5 {[%clk 0:02:52]} 7. Bf4 {[%clk 0:02:58]}  Nc6 {[%clk 0:02:52]} 8. Ne5 {[%clk 0:02:58]}  Bd7 {[%clk 0:02:51]} 9. Qb3 {[%clk 0:02:51]}  Nxe5 {[%clk 0:02:37]} 10. Bxe5 {[%clk 0:02:51]}  Bc6 {[%clk 0:02:37]} 11. Nd2 {[%clk 0:02:40]}  Rc8 {[%clk 0:02:32]} 12. Qa3 {[%clk 0:02:39]}  Bh6 {[%clk 0:02:07]} 13. Bxf6 {[%clk 0:02:27]}  exf6 {[%clk 0:02:06]} 14. Rad1 {[%clk 0:02:21]}  b6 {[%clk 0:02:04]} 15. e4 {[%clk 0:02:20]}  Bxd2 {[%clk 0:01:58]} 16. exd5 {[%clk 0:02:15]}  Bxd5 {[%clk 0:01:53]} 17. Rxd2 {[%clk 0:02:09]}  Bxg2 {[%clk 0:01:52]} 18. Kxg2 {[%clk 0:02:10]}  Qd5+ {[%clk 0:01:50]} 19. Kg1 {[%clk 0:02:10]}  Rc7 {[%clk 0:01:49]} 20. d4 {[%clk 0:02:10]}  h5 {[%clk 0:01:41]} 21. Rfd1 {[%clk 0:02:07]}  c4 {[%clk 0:01:41]} 22. Re1 {[%clk 0:02:08]}  h4 {[%clk 0:01:37]} 23. Qa4 {[%clk 0:01:34]}  h3 {[%clk 0:01:34]} 24. f4 {[%clk 0:01:34]}  a5 {[%clk 0:01:18]} 25. Qc2 {[%clk 0:01:32]}  b5 {[%clk 0:01:08]} 26. Qe4 {[%clk 0:01:30]}  Qh5 {[%clk 0:00:57]} 27. Qe2 {[%clk 0:01:29]}  Qf5 {[%clk 0:00:54]} 28. Qe4 {[%clk 0:01:29]}  Qh5 {[%clk 0:00:53]} 29. Qe2 {[%clk 0:01:27]}  Qf5 {[%clk 0:00:53]} 30. Qe4 {[%clk 0:01:26]}  Qh5 {[%clk 0:00:53]} 1/2-1/2


[Site "https://www.chess.com"]

[Event "Titled Tuesday Blitz December 27 Late 2022"]
[White "Balakrishnan, Praveen"]
[Black "Averjanov, Alexey"]
[WhiteFideId "2064871"]
[BlackFideId "14109867"]
[WhiteElo "2529"]
[BlackElo "2399"]
[Result "1-0"]
[Round "03"]
[TimeControl "180+2"]
[Date "2022.12.27"]
[WhiteClock "0:00:14"]
[BlackClock "0:00:15"]

1. e4 {[%clk 0:03:00]}  c6 {[%clk 0:02:59]} 2. d4 {[%clk 0:02:59]}  d5 {[%clk 0:02:59]} 3. e5 {[%clk 0:02:55]}  Bf5 {[%clk 0:02:58]} 4. h4 {[%clk 0:02:55]}  h5 {[%clk 0:02:57]} 5. c4 {[%clk 0:02:54]}  e6 {[%clk 0:02:54]} 6. Nc3 {[%clk 0:02:54]}  dxc4 {[%clk 0:02:55]} 7. Bxc4 {[%clk 0:02:51]}  Nd7 {[%clk 0:02:54]} 8. Nge2 {[%clk 0:02:44]}  Nb6 {[%clk 0:02:54]} 9. Bb3 {[%clk 0:02:44]}  Ne7 {[%clk 0:02:54]} 10. Bg5 {[%clk 0:02:36]}  Qd7 {[%clk 0:02:53]} 11. Ng3 {[%clk 0:02:26]}  Bg6 {[%clk 0:02:51]} 12. Rc1 {[%clk 0:02:14]}  Nf5 {[%clk 0:02:50]} 13. Nxf5 {[%clk 0:01:41]}  Bxf5 {[%clk 0:02:51]} 14. O-O {[%clk 0:01:38]}  Be7 {[%clk 0:02:51]} 15. Qd2 {[%clk 0:01:31]}  Bxg5 {[%clk 0:02:47]} 16. Qxg5 {[%clk 0:01:32]}  Qxd4 {[%clk 0:02:37]} 17. Qxg7 {[%clk 0:01:25]}  O-O-O {[%clk 0:02:37]} 18. Rfd1 {[%clk 0:01:23]}  Qxh4 {[%clk 0:02:34]} 19. Rxd8+ {[%clk 0:01:15]}  Rxd8 {[%clk 0:02:35]} 20. Qxf7 {[%clk 0:01:14]}  Nc4 {[%clk 0:02:16]} 21. Ne2 {[%clk 0:00:57]}  Nxe5 {[%clk 0:02:11]} 22. Bxe6+ {[%clk 0:00:57]}  Bxe6 {[%clk 0:02:07]} 23. Qxe6+ {[%clk 0:00:57]}  Nd7 {[%clk 0:02:08]} 24. Rc4 {[%clk 0:00:52]}  Qg5 {[%clk 0:02:02]} 25. Nd4 {[%clk 0:00:47]}  Rg8 {[%clk 0:01:57]} 26. g3 {[%clk 0:00:47]}  Qg6 {[%clk 0:01:49]} 27. Qxg6 {[%clk 0:00:43]}  Rxg6 {[%clk 0:01:50]} 28. Nf5 {[%clk 0:00:43]}  Kc7 {[%clk 0:01:44]} 29. Kg2 {[%clk 0:00:40]}  Re6 {[%clk 0:01:36]} 30. Nd4 {[%clk 0:00:38]}  Re5 {[%clk 0:01:34]} 31. Rc2 {[%clk 0:00:32]}  Nf6 {[%clk 0:01:30]} 32. Nf3 {[%clk 0:00:23]}  Re4 {[%clk 0:01:28]} 33. Ng5 {[%clk 0:00:23]}  Re5 {[%clk 0:01:27]} 34. Nf3 {[%clk 0:00:20]}  Re4 {[%clk 0:01:27]} 35. Rd2 {[%clk 0:00:19]}  b5 {[%clk 0:01:17]} 36. Nd4 {[%clk 0:00:19]}  Kb6 {[%clk 0:01:14]} 37. Nf5 {[%clk 0:00:18]}  a5 {[%clk 0:01:07]} 38. Ne3 {[%clk 0:00:17]}  h4 {[%clk 0:01:04]} 39. Rd6 {[%clk 0:00:15]}  Ne8 {[%clk 0:01:00]} 40. Rg6 {[%clk 0:00:13]}  hxg3 {[%clk 0:00:59]} 41. Kxg3 {[%clk 0:00:13]}  Nc7 {[%clk 0:00:55]} 42. Kf3 {[%clk 0:00:13]}  Re8 {[%clk 0:00:48]} 43. Nf5 {[%clk 0:00:08]}  a4 {[%clk 0:00:44]} 44. Nd4 {[%clk 0:00:08]}  Kc5 {[%clk 0:00:42]} 45. Nxc6 {[%clk 0:00:07]}  Ne6 {[%clk 0:00:40]} 46. Ne5 {[%clk 0:00:05]}  Nd4+ {[%clk 0:00:38]} 47. Ke4 {[%clk 0:00:06]}  Nf3 {[%clk 0:00:34]} 48. Rc6+ {[%clk 0:00:04]}  Kb4 {[%clk 0:00:30]} 49. Kxf3 {[%clk 0:00:03]}  Rxe5 {[%clk 0:00:30]} 50. Rc2 {[%clk 0:00:04]}  Re8 {[%clk 0:00:27]} 51. Kg2 {[%clk 0:00:03]}  Rg8+ {[%clk 0:00:24]} 52. Kf1 {[%clk 0:00:04]}  a3 {[%clk 0:00:21]} 53. bxa3+ {[%clk 0:00:04]}  Kxa3 {[%clk 0:00:22]} 54. f3 {[%clk 0:00:04]}  Rf8 {[%clk 0:00:19]} 55. Kf2 {[%clk 0:00:04]}  b4 {[%clk 0:00:18]} 56. Re2 {[%clk 0:00:02]}  Rf7 {[%clk 0:00:14]} 57. Kg3 {[%clk 0:00:02]}  Rg7+ {[%clk 0:00:12]} 58. Kf4 {[%clk 0:00:03]}  Rf7+ {[%clk 0:00:12]} 59. Kg4 {[%clk 0:00:03]}  Rg7+ {[%clk 0:00:12]} 60. Kh5 {[%clk 0:00:04]}  Rf7 {[%clk 0:00:12]} 61. Rf2 {[%clk 0:00:05]}  b3 {[%clk 0:00:12]} 62. axb3 {[%clk 0:00:05]}  Kxb3 {[%clk 0:00:12]} 63. f4 {[%clk 0:00:06]}  Kc4 {[%clk 0:00:13]} 64. Kg6 {[%clk 0:00:06]}  Rf8 {[%clk 0:00:13]} 65. f5 {[%clk 0:00:06]}  Kd5 {[%clk 0:00:13]} 66. f6 {[%clk 0:00:07]}  Rg8+ {[%clk 0:00:13]} 67. Kf7 {[%clk 0:00:07]}  Rg4 {[%clk 0:00:12]} 68. Rd2+ {[%clk 0:00:06]}  Ke5 {[%clk 0:00:12]} 69. Re2+ {[%clk 0:00:06]}  Kf5 {[%clk 0:00:12]} 70. Ke7 {[%clk 0:00:07]}  Rb4 {[%clk 0:00:11]} 71. f7 {[%clk 0:00:07]}  Rb7+ {[%clk 0:00:12]} 72. Kf8 {[%clk 0:00:07]}  Kf6 {[%clk 0:00:10]} 73. Rf2+ {[%clk 0:00:07]}  Kg6 {[%clk 0:00:10]} 74. Kg8 {[%clk 0:00:07]}  Rb8+ {[%clk 0:00:08]} 75. f8=Q {[%clk 0:00:08]}  Rxf8+ {[%clk 0:00:08]} 76. Kxf8 {[%clk 0:00:08]}  Kh6 {[%clk 0:00:09]} 77. Kf7 {[%clk 0:00:09]}  Kg5 {[%clk 0:00:10]} 78. Ke6 {[%clk 0:00:09]}  Kg4 {[%clk 0:00:11]} 79. Ke5 {[%clk 0:00:09]}  Kg3 {[%clk 0:00:11]} 80. Rf8 {[%clk 0:00:10]}  Kg4 {[%clk 0:00:11]} 81. Rf7 {[%clk 0:00:10]}  Kg5 {[%clk 0:00:12]} 82. Rg7+ {[%clk 0:00:11]}  Kh6 {[%clk 0:00:12]} 83. Rg1 {[%clk 0:00:11]}  Kh5 {[%clk 0:00:13]} 84. Kf4 {[%clk 0:00:12]}  Kh6 {[%clk 0:00:13]} 85. Kf5 {[%clk 0:00:12]}  Kh7 {[%clk 0:00:14]} 86. Kf6 {[%clk 0:00:13]}  Kh8 {[%clk 0:00:14]} 87. Kf7 {[%clk 0:00:14]}  Kh7 {[%clk 0:00:15]} 88. Rh1# {[%clk 0:00:14]} 1-0


[Site "https://www.chess.com"]